Cogmind - Beta 17 @@@ ROGUE MODE // 2026.08.05 @ 18:23:46 Player: Floof Enjoyer Result: Destroyed by NK-ICE(R) with Subdweller Shrapnel Launcher Performance ------------- Evolutions (0) 0 Regions Visited (3) 600 Robots Destroyed (10) 50 Value Destroyed (311) 311 Prototype IDs (2) 40 Alien Tech Used (0) 0 Bonus (0) 0 TOTAL SCORE: 1001 Bonus ------- None Cogmind --------- Core Integrity 0/250 Matter 300/300 Energy 100/100 System Corruption 0% Temperature Cool (0) Movement Walking (120) Location -10/Subcaves Parts ------- > --- POWER (1) -------- (None) > --- PROPULSION (2) --- Aluminum Leg > --- UTILITY (2) ------ Small Storage Unit > --- WEAPON (2) ------- Particle Gun > --- INVENTORY (8) ---- Light Ion Engine Peak State ------------ > --- POWER ------------ Ion Engine > --- PROPULSION ------- Aluminum Leg Makeshift Leg > --- UTILITY ---------- Improved Heat Sink Small Storage Unit > --- WEAPON ----------- Particle Gun Mining Laser > --- INVENTORY -------- Light Ion Engine Light Ion Engine Aluminum Leg [Rating: 13] Favorites ----------- Power Ion Engine Engine Ion Engine Power Core Light Nuclear Core Propulsion Aluminum Leg Leg Aluminum Leg Wheel Compact Wheel Utility Small Storage Unit Device Improved Heat Sink Storage Small Storage Unit Weapon Small Laser Energy Gun Small Laser Ballistic Gun Light Assault Rifle Special Weapon Mining Laser Build | -11 -10 -10 -10 ------- Run | Yrd Mat Min Sub Slots Evolved . | . . . . Power . | . . . . Propulsion . | . . . . Utility . | . . . . Weapon . | . . . . Parts Attached 20 | 6 4 6 4 Power 4 | 1 1 1 1 Engine 3 | 1 . 1 1 Core 1 | . 1 . . Reactor . | . . . . Propulsion 5 | 2 . 2 1 Treads . | . . . . Leg 3 | . . 2 1 Wheel 2 | 2 . . . Hover . | . . . . Flight . | . . . . Utility 4 | 1 2 1 . Device 3 | . 2 1 . Storage 1 | 1 . . . Processor . | . . . . Hackware . | . . . . Protection . | . . . . Artifact . | . . . . Weapon 7 | 2 1 2 2 Energy Gun 4 | 2 1 . 1 Energy Cannon . | . . . . Ballistic Gun 1 | . . 1 . Ballistic Cannon . | . . . . Launcher . | . . . . Special Weapon 2 | . . 1 1 Impact Weapon . | . . . . Slashing Weapon . | . . . . Piercing Weapon . | . . . . Special Melee Weapon . | . . . . Unidentified Prototypes . | . . . . Parts Lost 13 | . 1 5 7 Power 3 | . . 1 2 Propulsion 3 | . . 2 1 Utility 1 | . . . 1 Weapon 6 | . 1 2 3 Highest Loss Streak 5 | . 1 5 3 To Critical Strikes . | . . . . Average Backups 2 | 2 2 3 2 Power 1 | . 1 1 1 Propulsion . | . . . . Utility . | . . . . Weapon 1 | 1 1 2 . Tool/Special . | . . . . Unused Backups 1 | . . . 1 Power 1 | . . . 1 Propulsion . | . . . . Utility . | . . . . Weapon . | . . . . Tool/Special . | . . . . Average Slot Usage (%) 91 | . 94 83 92 Engine 12 | . 10 5 14 Core 1 | . 3 3 . Leg 20 | . . 10 28 Wheel 5 | . 28 6 . Device 8 | . 8 14 7 Storage 14 | . 14 14 14 Energy Gun 16 | . 28 16 13 Special Weapon 10 | . . 8 14 Peak Build Rating 13 | 6 11 11 13 Average Rating 9 | 3 7 8 10 On Entrance 6 | . 6 11 9 Avg Prop Armor Cover (%) . | . . . . Naked Turns . | . . . . Heaviest Build 15 | 12 13 13 15 Greatest Support 32 | 32 32 32 30 Greatest Overweight (x) 4 | . . 4 . Average Overweight (x) . | . . . . Largest Inventory Capacity 8 | 8 8 8 8 Average Capacity 7 | 6 8 8 8 Most Carried 5 | 5 4 5 5 Average Carried 2 | 2 2 3 2 Final Capacity 8 | 8 8 8 8 Final Carried 4 | 2 4 4 1 Class Distribution -------------------- 83% | Mutant 16% | Scavenger-Mutant Dominant Class ---------------- Mutant | -10/Materials Mutant | -10/Mines Mutant | -10/Subcaves Resources | -11 -10 -10 -10 ----------- Run | Yrd Mat Min Sub Matter Collected 383 | 177 48 117 41 Remotely . | . . . . Salvage Created 317 | . 107 137 73 Parts 22 | . 6 14 2 Haulers Intercepted . | . . . . Recyclers Shooed . | . . . . Parts Field Recycled . | . . . . Retrieved Matter . | . . . . Parts Self-Destructed 6 | . . . 6 Prevented . | . . . . Parts Restored . | . . . . Kills | -11 -10 -10 -10 ------- Run | Yrd Mat Min Sub Combat Hostiles Destroyed 10 | . 2 5 3 Guns 9 | . 2 5 2 Cannons 1 | . . . 1 Classes Destroyed 4 | . 1 1 2 Swarmer 3 | . . 3 . Grunt 5 | . 2 2 1 Sentry 1 | . . . 1 Subdweller 1 | . . . 1 Best Kill Streak 5 | . 2 5 2 Combat Bots Only 5 | . 2 5 2 Max Kills in Single Turn 1 | . 1 1 1 Gunslinging . | . . . . Exploded . | . . . . Melee . | . . . . Uniques/NPCs Destroyed . | . . . . Combat | -11 -10 -10 -10 -------- Run | Yrd Mat Min Sub Hostile Shots Fired 105 | . 18 50 37 Missed 26 | . 6 7 13 Hits 79 | . 12 43 24 Projectile 79 | . 12 43 24 AOE 4 | . . . 4 Critical Strikes 3 | . 2 . 1 Damage Taken 1186 | . 168 435 583 Core 269 | . 12 118 139 Absorbed by Shields . | . . . . Core Remaining (%) 100 | 100 . . . Volleys Fired 48 | . 11 16 21 Largest 2 | . 2 2 2 Hottest 165 | . 80 80 165 Shots Fired 74 | . 22 25 27 Gun 67 | . 22 25 20 Cannon . | . . . . Launcher . | . . . . Special 7 | . . . 7 Kinetic 8 | . . 8 . Thermal 66 | . 22 17 27 Explosive . | . . . . Electromagnetic . | . . . . Robot Hit Streak 8 | . 4 7 8 Robot Miss Streak 5 | . 3 5 2 Penetration Max . | . . . . Secondary Targets 2 | . 1 1 . Max Gunslinging Chain 1 | . 1 1 . Shots Hit Robots 46 | . 13 17 16 Core Hits 23 | . 6 11 6 Critical Kills . | . . . . Critical Parts Destroyed . | . . . . Critical Strikes 1 | . . . 1 Burn 1 | . . . 1 Melee Attacks . | . . . . Impact . | . . . . Slashing . | . . . . Piercing . | . . . . Sneak Attacks . | . . . . Combat Hostiles . | . . . . Follow-up Attacks . | . . . . Damage Inflicted 571 | . 142 171 258 Guns 469 | . 142 165 162 Cannons . | . . . . Explosions . | . . . . Melee . | . . . . Ramming 6 | . . 6 . Kinetic 52 | . . 52 . Thermal 513 | . 142 113 258 Explosive . | . . . . Electromagnetic . | . . . . Impact . | . . . . Slashing . | . . . . Piercing . | . . . . Highest Corruption . | . . . . Average Corruption . | . . . . Corruption Purged . | . . . . Corruption Blocked . | . . . . Overload Shots . | . . . . Overflow Damage . | . . . . Projectiles . | . . . . Explosions . | . . . . Melee . | . . . . Knockbacks . | . . . . Impact . | . . . . Kinetic . | . . . . Secondary . | . . . . Self-Inflicted Damage . | . . . . Shots . | . . . . Rammed . | . . . . Targets Rammed 2 | . . 2 . Kicked 2 | . . 2 . Crushed . | . . . . Highest Temperature 50 | . 50 13 19 Average Temperature 15 | . 19 9 8 Received Heat Transfer 336 | . 135 126 75 Siege Activations . | . . . . Martial Activations . | . . . . Shielding Activations . | . . . . Robots Disrupted . | . . . . Combat Hostiles . | . . . . Robots Corrupted . | . . . . Combat Hostiles . | . . . . Parts Fried . | . . . . Impact Corruptions . | . . . . Robots Melted . | . . . . Combat Hostiles . | . . . . Parts Melted 1 | . 1 . . Heat Transferred 1257 | . 325 250 682 Parts Sabotaged . | . . . . Parts Stolen . | . . . . Parts Stripped . | . . . . Power Chain Reactions . | . . . . Alert | -11 -10 -10 -10 ------- Run | Yrd Mat Min Sub Maximum Alert Level . | . . . . Low Security (%) 100 | 100 100 100 . Level 1 . | . . . . Level 2 . | . . . . Level 3 . | . . . . Level 4 . | . . . . Level 5 . | . . . . High Security . | . . . . Max Security . | . . . . Peak Influence 70 | . 40 70 . Initial 3 | . . 3 . Average 19 | . 11 40 . Influence Increases 210 | . 50 120 40 Destroy 0b10 Robot/C 180 | . 40 100 40 Destroy Leader 30 | . 10 20 . Influence Decreases 210 | . 40 80 90 Entered New Map 33 | . . 7 26 Time Decay 134 | . 30 40 64 Lost Part 43 | . 10 33 . Squads Dispatched . | . . . . Investigation . | . . . . Extermination . | . . . . Reinforcement . | . . . . Assault . | . . . . Garrison . | . . . . Intercept . | . . . . Searches Triggered . | . . . . Construction Impeded . | . . . . Haulers Reinforced . | . . . . Active Scanning Responses . | . . . . Cargo Convoy Interrupts . | . . . . Stealth | -11 -10 -10 -10 --------- Run | Yrd Mat Min Sub Distress Signals . | . . . . Communications Jammed . | . . . . Distress Signals . | . . . . Times Spotted 12 | . 3 5 4 Peak Tracking Total 4 | . 4 4 2 Tactical Retreats . | . . . . Traps | -11 -10 -10 -10 ------- Run | Yrd Mat Min Sub Traps Triggered . | . . . . Indirectly . | . . . . Trap Hack Attempts . | . . . . Triggered . | . . . . Disarmed . | . . . . Reprogrammed . | . . . . Reused . | . . . . Traps Extracted . | . . . . Installed . | . . . . Triggered . | . . . . Machines | -11 -10 -10 -10 ---------- Run | Yrd Mat Min Sub Machines Disabled . | . . . . Max in Single Turn . | . . . . Machines Repaired . | . . . . Machines Dismantled . | . . . . Machines Sabotaged . | . . . . Overloaded Fab Kills . | . . . . Hacking | -11 -10 -10 -10 --------- Run | Yrd Mat Min Sub Machines Accessed 2 | . 2 . . Terminals 2 | . 2 . . Fabricators . | . . . . Repair Stations . | . . . . Recycling Units . | . . . . Scanalyzers . | . . . . Garrison Access . | . . . . Total Hacks 2 | . 2 . . Successful 2 | . 2 . . Failed . | . . . . Catastrophic . | . . . . Database Lockouts . | . . . . Manual . | . . . . Terminals 2 | . 2 . . Fabricators . | . . . . Repair Stations . | . . . . Recycling Units . | . . . . Scanalyzers . | . . . . Garrison Access . | . . . . Terminal Hacks 2 | . 2 . . Prototype ID Bank 1 | . 1 . . Zone Layout 1 | . 1 . . Fabricator Hacks . | . . . . Repair Station Hacks . | . . . . Recycling Unit Hacks . | . . . . Scanalyzer . | . . . . Garrison Access Hacks . | . . . . Unauthorized Hacks . | . . . . Terminals . | . . . . Fabricators . | . . . . Repair Stations . | . . . . Recycling Units . | . . . . Scanalyzers . | . . . . Garrison Access . | . . . . Data Cores Recovered . | . . . . Used . | . . . . Hacking Detections 1 | . 1 . . Full Trace Events . | . . . . Feedback Events . | . . . . Feedback Blocked . | . . . . Robot Schematics Acquired . | . . . . Robots Built . | . . . . Authchips . | . . . . Time . | . . . . Total Robot Build Rating . | . . . . Part Schematics Acquired . | . . . . Parts Built . | . . . . Authchips . | . . . . Time . | . . . . Total Part Build Rating . | . . . . Part Studies Acquired . | . . . . Parts Repaired . | . . . . Time . | . . . . Parts Recycled . | . . . . Recycled Matter . | . . . . Retrieved Matter . | . . . . Retrieved Components . | . . . . Parts Scanalyzed . | . . . . Part Schematics Acquired . | . . . . Parts Damaged . | . . . . Bothacking | -11 -10 -10 -10 ------------ Run | Yrd Mat Min Sub Used RIF Installer . | . . . . Robots Hacked . | . . . . Non-combat . | . . . . Combat . | . . . . Robot Hacks Applied . | . . . . Relay Couplers Released . | . . . . Fabnet Peak Effective % . | . . . . Robots Rewired . | . . . . Allies Hacked . | . . . . Hacks Repelled . | . . . . Allies | -11 -10 -10 -10 -------- Run | Yrd Mat Min Sub Total Allies . | . . . . Largest Group . | . . . . Highest-Rated Group . | . . . . Highest-Rated Ally . | . . . . Total Orders . | . . . . Ally Attacks . | . . . . Total Damage . | . . . . Kills . | . . . . Allies Corrupted . | . . . . Allies Melted . | . . . . Intel | -11 -10 -10 -10 ------- Run | Yrd Mat Min Sub Active Infowar (turns) . | . . . . Robot Analysis Total . | . . . . Derelict Logs Recovered . | . . . . Drone Launches . | . . . . Drone Recoveries . | . . . . Exploration | -11 -10 -10 -10 ------------- Run | Yrd Mat Min Sub Turns Passed 792 | 50 125 98 519 Spaces Moved 503 | 42 80 32 349 Core 18 | 11 . 7 . Treads . | . . . . Legs 373 | . . 24 349 Wheels 112 | 31 80 1 . Hover . | . . . . Flight . | . . . . Fastest Speed 50 | 50 100 100 120 Average Speed 120 | 86 100 132 128 Slowest Speed 250 | 100 100 250 130 Overloaded Moves . | . . . . Propulsion Burnouts . | . . . . Robots Hopped . | . . . . Potential Cave-ins . | . . . . Cave-ins Triggered . | . . . . Exploration Rate (%) 12 | 4 18 7 19 Regions Visited 3 Branch Regions 2 Pre-discovered Areas . | . . . . Known Exits Taken . | . . . . Unknown Exits Taken 3 | 1 1 1 . Scrap Searched 1 | . . . 1 Spaces Dug . | . . . . Terrain Destroyed 1 | . . . 1 Melee . | . . . . Projectile 1 | . . . 1 AOE . | . . . . Terrain Rammed . | . . . . Walls Destroyed . | . . . . Machines Disabled . | . . . . Actions | -11 -10 -10 -10 --------- Run | Yrd Mat Min Sub Total 597 | 55 102 63 377 Wait . | . . . . Move 500 | 41 79 31 349 Hop . | . . . . Pick Up 21 | 8 6 6 1 Fast Attach . | . . . . Attach 16 | 6 2 5 3 Detach . | . . . . Swap 6 | . 2 2 2 Drop 4 | . 2 1 1 Fire 48 | . 11 16 21 Melee . | . . . . Ram . | . . . . Kick 2 | . . 2 . Crush . | . . . . Escape Stasis . | . . . . Rewire . | . . . . Trap . | . . . . Miscellaneous . | . . . . Route ------- -11/Scrapyard -10/Materials -10/Mines -10/Subcaves History --------- Turn | Location | Event 8 | -11/Scrapyard | Discovered new exit (range 15) 51 | -11/Scrapyard | Entered Materials 102 | -10/Materials | Discovered new exit (range 13) 176 | -10/Materials | Entered Mines 217 | -10/Mines | Core integrity fell below 50% 237 | -10/Mines | Lost 5 parts (1p2n2w) 267 | -10/Mines | Discovered new exit (range 6) 274 | -10/Mines | Entered Subcaves 275 | -10/Subcaves | Approached by a straggling Scientist 489 | -10/Subcaves | Ambushed by Subdweller buried in earth 668 | -10/Subcaves | Shifting Twisted Machinery released Piercing Trap 790 | -10/Subcaves | Core integrity fell below 20% 793 | -10/Subcaves | Destroyed by NK-ICE(R) with Subdweller Shrapnel Launcher Last Messages --------------- 3W-IK2(u) tweaks Twisted Machinery. Aluminum Leg fries itself beyond repair. Critical hit (Burn: +37). Y-45 Defender suffers critical hit (Burn). Y-45 Defender destroyed. Acquired 10 matter. Heat Sink fries itself beyond repair. Acquired 10 matter. Dropped Aluminum Leg. 8M-BDV(c): "I think it's somewhere west of here" Subatomizers dissect the Aluminum Leg, destroying it. 8M-BDV(c): "I think it's somewhere west of here" Piercing Trap falls loose from the Twisted Machinery. 8M-BDV(c): "I think it's somewhere west of here" Mining Laser destroyed. Mak. Leg destroyed. Lgt. Ion Engine destroyed. Map ----- +----------------------------------------------------+ | ## ##???????????### ### #???????????? | | ######## ##?????########## ##??????????????? | | #??????# #####?# ### #??????????????? | | #?????# ##?# #??????????????? | | #####?????### #?## ##??????????????? | | ????????????## #??# ##???????????????? | | ?????????????# #??## ##????????????????? | | ????????????## #?### #?????????????????? | | ????????????# ### ## ##?????????????????? | | ????????????# #### #??????????????????? | | ????????????# ## #??????????????????? | | ????????????#### ## /# ##??????????????????? | | ??????????????## ###### ## ##???????????????????? | | ??????????????# ##????### ##????????????????????? | | ?????????????## #?????## ##?????????????????????? | | ???????????###| #????## ##??????????????????????? | | ???????????# #????#*# ###????????????????????? | | ???????????## ##????# ## #????????????????????? | | ????????????#####?????## ## ##???????????????????? | | ???????????????????????## ## ###?????????????????? | | ????????????????????????## # ##????????????????? | | ?????????????????????#### # #????????????????? | | ????????????????#???## ; # ##????######?????? | | ????????????????#;; # c # ###?##" ##??### | | ?????????????????# ;; # ### ### #### | | ????????????# @ ## ## # ## # ## # | | ????????????????# ;###?# ######### # # | | ????????????????#; R #???###???????##### | | ????????????????##;;; ##??????????????????# | | ?????????????????## ; ; ??????????????????? | | ??????????????????## # # ?????????????????? | | ???????????????????###### #????????????????? | | ????????????????????????# ### #???????????????? | | ????????????????????????###??# #??????????????? | | ??????????????????????????????## ??????????????? | | ????????????????????????????????####?????????????? | | ?????????????????????????????????????????????????? | | ?????????????????????????????????????????????????? | | ?????????????????????????????????????????????????? | | ?????????????????????????????????????????????????? | | ?????????????????????????????????????????????????? | | ?????????????????????????????????????????????????? | | ?????????????????????????????????????????????????? | | ?????????????????????????????????????????????????? | | ?????????????????????????????????????????????????? | | ?????????????????????????????????????????????????? | | ?????????????????????????????????????????????????? | | ?????????????????????????????????????????????????? | | ?????????????????????????????????????????????????? | | ?????????????????????????????????????????????????? | +----------------------------------------------------+ Best States ------------- Heat Dissipation 39 Energy Generation 14 Energy Capacity 250 Matter Stores 300 Matter Capacity 300 Sight Range 16 Terrain Scan Density 10 Evasion (%) 55 Item Schematics ----------------- None Robot Schematics ------------------ None Fabricated ------------ Nothing Repaired ---------- Nothing Studied --------- None Alien Tech Used ----------------- None Achievements -------------- None Challenges ------------ None Game ------ Seed WaveChainRouter Manual? 0 Play Time 00:08:43 Cumulative 6.6 hours Start 2026.08.05 @ 18:17:47 End 2026.08.05 @ 18:23:46 Sessions 1 Manual Loads 0 Difficulty Rogue Special Mode None Game No. 20 Rogue 20 Adventurer 0 Explorer 0 Win Type - Total 0 Types 0/0/0/0/0/0/0/0/0/0 Lore% 10 Gallery% 14 Achievement% 11 Wizard Run 0 Options --------- Layout 1 ASCII 0 Keyboard 0 Movement Mouse Keybinds 0 Fullscreen 1 Font 24/Smallcaps Map View 50x35 Zoom Use 0% Tactical HUD 0 Map Filters NONE Filters NONE Steam 1 RUN: 727aa535-357c-4e93-a054-000f09d469ea